bitfinex/quotes_ETHUSD_20230105
["timestamp","ask_amount","ask_price","bid_price","bid_amount"]
[1672894390584,0.05,1254.7,1254.4,44.96833072]
[1672894390780,21.54064178,1254.8,1254.4,44.96833072]
[1672894391741,21.54064178,1254.8,1254.4,45.44688997]
[1672894392583,21.54064178,1254.8,1254.5,3.98914951]
[1672894392795,21.54064178,1254.8,1254.6,7.97066]
[1672894393041,21.54064178,1254.8,1254.6,8.03426121]
[1672894393794,21.54064178,1254.8,1254.6,0.06360121]
[1672894394006,21.54064178,1254.8,1254.5,19.99473072]
[1672894394768,0.05,1254.7,1254.5,19.99473072]
[1672894395053,21.94578575,1254.8,1254.5,19.99473072]
[1672894395273,29.91529575,1254.8,1254.5,12.02374072]
[1672894398039,37.47966178,1254.8,1254.5,4.05275072]
[1672894398177,37.47966178,1254.8,1254.5,3.98914951]
[1672894398892,45.44945178,1254.8,1254.5,3.98914951]
[1672894399100,37.47966178,1254.8,1254.5,3.98914951]
[1672894400317,29.51015178,1254.8,1254.5,11.96018951]
[1672894400627,29.51015178,1254.8,1254.5,12.02379072]
[1672894402841,29.51015178,1254.8,1254.5,4.05275072]
[1672894403048,37.47954178,1254.8,1254.5,3.98914951]
[1672894403200,37.47942178,1254.8,1254.5,3.98914951]
[1672894405402,29.51003178,1254.8,1254.5,3.98914951]
[1672894405825,29.51003178,1254.8,1254.4,41.45702046]
[1672894406033,37.47942178,1254.8,1254.4,29.50319997]
[1672894406263,37.47942178,1254.8,1254.4,37.47512997]
[1672894406454,21.54064178,1254.8,1254.4,52.52126148]
[1672894407664,29.51010178,1254.8,1254.4,52.52126148]
[1672894407979,29.90495557,1254.8,1254.4,52.52126148]
[1672894408950,29.90495557,1254.8,1254.4,52.51881525]
[1672894410417,29.51010178,1254.8,1254.4,52.51881525]
[1672894411325,4.5,1254.7,1254.4,52.51881525]
[1672894411510,22.7520284,1254.8,1254.4,52.51881525]
[1672894411720,29.51097678,1254.8,1254.4,52.51881525]
[1672894413640,37.48043678,1254.8,1254.4,44.54688525]
[1672894413964,37.48043678,1254.8,1254.4,37.47268374]
[1672894414366,45.44989678,1254.8,1254.4,29.50075374]
[1672894415720,37.48043678,1254.8,1254.4,37.47268374]
[1672894416201,29.51097678,1254.8,1254.4,45.44461374]
[1672894416721,45.44975678,1254.8,1254.4,21.52886374]
[1672894417292,8.72946897,1254.7,1254.4,29.50079374]
[1672894417498,16.71554897,1254.7,1254.4,36.57480063]
[1672894417712,8.03608,1254.7,1254.4,36.57480063]
[1672894417956,8.03608,1254.7,1254.4,28.60287063]
[1672894417957,20.18562897,1254.7,1254.4,28.60287063]
[1672894418341,20.18562897,1254.7,1254.4,21.52886374]
[1672894418788,12.21554897,1254.7,1254.4,29.50071374]
[1672894418973,20.18557897,1254.7,1254.4,21.52886374]
[1672894419320,4.24546897,1254.7,1254.4,29.50047374]
[1672894419502,4.17946897,1254.7,1254.4,29.50047374]
[1672894419712,15.17120854,1254.8,1254.4,50.92106763]
[1672894421393,15.22120854,1254.8,1254.4,50.92106763]
[1672894421772,15.17120854,1254.8,1254.4,50.92106763]
[1672894422603,14.78225562,1254.8,1254.4,50.92106763]
[1672894424069,22.75165562,1254.8,1254.4,50.92106763]
[1672894429003,29.30183078,1254.8,1254.4,50.92106763]
[1672894429960,29.30183078,1254.8,1254.5,1.22194835]
[1672894430166,21.33243078,1254.8,1254.5,9.19306835]
[1672894430324,21.33243078,1254.8,1254.5,9.25666956]
[1672894431750,0.05,1254.7,1254.5,9.25666956]
[1672894431899,14.78225562,1254.8,1254.5,9.25666956]
[1672894432111,21.54113172,1254.8,1254.5,9.25666956]
[1672894432802,29.51057172,1254.8,1254.5,9.25666956]
[1672894433272,21.54113172,1254.8,1254.5,9.25666956]
[1672894433645,37.48017172,1254.8,1254.5,1.28554956]
[1672894433958,29.51065172,1254.8,1254.5,1.22194835]
[1672894434363,21.54113172,1254.8,1254.5,17.16448835]
[1672894434574,21.54113172,1254.8,1254.5,17.22808956]
[1672894437074,29.51054172,1254.8,1254.5,9.25678956]
[1672894437533,37.47995172,1254.8,1254.5,1.28554956]
[1672894437742,37.47995172,1254.8,1254.5,1.22194835]
[1672894438060,29.51054172,1254.8,1254.5,9.19318835]
[1672894438273,29.51054172,1254.8,1254.5,9.25678956]
[1672894438442,21.54113172,1254.8,1254.5,17.22808956]
[1672894439935,0.05,1254.7,1254.5,17.22808956]
[1672894440105,10.60278665,1254.8,1254.5,22.69173577]
[1672894440333,10.60278665,1254.8,1254.5,21.21723907]
[1672894440599,10.60278665,1254.8,1254.5,21.21345709]
[1672894441388,10.60278665,1254.8,1254.5,29.18475709]
[1672894444044,10.65278665,1254.8,1254.5,29.18475709]
[1672894444272,10.60278665,1254.8,1254.5,29.18475709]
[1672894445213,10.60278665,1254.8,1254.5,34.6479941]
[1672894452278,10.65278665,1254.8,1254.5,34.6479941]
[1672894452593,10.60278665,1254.8,1254.5,34.6479941]
[1672894452766,10.99545516,1254.8,1254.5,21.21345709]
[1672894452977,10.60278665,1254.8,1254.5,21.21345709]
[1672894453711,38.69048562,1254.8,1254.5,1.28176758]
[1672894453922,34.51101665,1254.8,1254.5,1.21816637]
[1672894454645,26.54159665,1254.8,1254.5,1.21816637]
[1672894454845,32.74633063,1254.8,1254.5,1.21816637]
[1672894456108,24.77691063,1254.8,1254.5,9.18926637]
[1672894456318,16.80752063,1254.8,1254.5,9.25286758]
[1672894456587,16.80752063,1254.8,1254.5,17.22416758]
[1672894456802,24.77696063,1254.8,1254.5,9.25286758]
[1672894457420,16.80752063,1254.8,1254.5,9.25286758]
[1672894458645,24.77691063,1254.8,1254.5,1.28176758]
[1672894458856,24.77691063,1254.8,1254.5,9.18938637]
[1672894459064,24.77691063,1254.8,1254.5,9.25298758]
[1672894459065,25.37501063,1254.8,1254.5,9.25298758]
[1672894460302,33.34458063,1254.8,1254.5,1.28176758]
[1672894460479,25.37501063,1254.8,1254.5,9.18941637]
[1672894460629,37.5238696,1254.8,1254.5,1.28176758]
[1672894460846,46.8091596,1254.8,1254.5,1.21816637]
[1672894461435,38.8397696,1254.8,1254.5,1.21816637]
[1672894462826,24.50955,1254.7,1254.5,1.21816637]
[1672894463103,22.93956918,1254.7,1254.5,1.21816637]
[1672894463460,30.90902918,1254.7,1254.5,1.21816637]
[1672894463673,30.90902918,1254.7,1254.5,1.21514744]
[1672894463674,29.02824815,1254.7,1254.5,1.21514744]
[1672894464514,24.84877918,1254.7,1254.5,1.21514744]
[1672894464764,5.894,1254.6,1254.5,1.21514744]
[1672894464971,9.03396514,1254.6,1254.5,1.21514744]
[1672894465182,4.53396514,1254.6,1254.5,1.21514744]
[1672894465381,4.46827792,1254.6,1254.5,1.21514744]
[1672894466084,8.96827792,1254.6,1254.5,1.21514744]
[1672894466299,4.53396514,1254.6,1254.5,1.21514744]
[1672894466510,4.46827792,1254.6,1254.5,1.21514744]
[1672894468995,12.43893792,1254.6,1254.5,1.21514744]
[1672894469297,4.53396514,1254.6,1254.5,1.21514744]
[1672894469514,4.46827792,1254.6,1254.5,1.21514744]
[1672894469893,28.38025792,1254.6,1254.5,1.21514744]
[1672894470120,20.47528514,1254.6,1254.5,1.21514744]
[1672894470565,12.50462514,1254.6,1254.5,1.21514744]
[1672894472838,20.52528514,1254.6,1254.5,1.21514744]
[1672894473029,20.47528514,1254.6,1254.5,1.21514744]
[1672894473415,20.87286219,1254.6,1254.5,1.21514744]
[1672894474508,4.93154219,1254.6,1254.5,1.21514744]
[1672894474702,3.47185497,1254.6,1254.5,1.21514744]
[1672894475573,0.39757705,1254.6,1254.5,1.21514744]
[1672894475706,8.03791665,1254.7,1254.5,1.21514744]
[1672894475914,0.06788665,1254.7,1254.5,1.21514744]
[1672894476164,0.00219943,1254.7,1254.5,1.21514744]
[1672894476544,0.40883227,1254.7,1254.5,1.21514744]
[1672894476754,7.97238943,1254.7,1254.5,1.21514744]
[1672894476961,12.15651521,1254.7,1254.5,1.21514744]
[1672894478123,8.68632521,1254.7,1254.5,1.21514744]
[1672894478755,4.18632521,1254.7,1254.5,1.21514744]
[1672894479124,8.62063799,1254.7,1254.5,1.21514744]
[1672894479322,16.65637521,1254.7,1254.5,1.21514744]
[1672894479968,12.15637521,1254.7,1254.5,1.21514744]
[1672894480560,12.15637521,1254.7,1254.5,9.18641744]
[1672894480561,4.18632521,1254.7,1254.5,9.18641744]
[1672894480914,4.12063799,1254.7,1254.5,9.25001865]
[1672894483285,8.62063799,1254.7,1254.5,9.25001865]
[1672894483497,4.18632521,1254.7,1254.5,9.25001865]
[1672894483697,4.12063799,1254.7,1254.5,9.25001865]
[1672894485582,0.00219943,1254.7,1254.5,25.19261865]
[1672894485792,10.60058722,1254.8,1254.5,25.19261865]
[1672894486211,10.60058722,1254.8,1254.5,17.22131865]
[1672894486677,10.60058722,1254.8,1254.5,25.19261865]
[1672894486886,14.78005619,1254.8,1254.5,17.22131865]
[1672894487053,20.24731222,1254.8,1254.5,17.22131865]
[1672894487284,16.06784325,1254.8,1254.5,17.22131865]
[1672894487896,16.06784325,1254.8,1254.5,1.27874865]
[1672894488113,24.03775325,1254.8,1254.5,1.21514744]
[1672894488376,28.21722222,1254.8,1254.5,9.18300397]
[1672894488595,28.21722222,1254.8,1254.5,9.24660518]
[1672894489261,28.21722222,1254.8,1254.5,1.27546518]
[1672894489472,44.15652222,1254.8,1254.5,1.21186397]
[1672894489698,4.5,1254.7,1254.5,1.21186397]
[1672894489908,17.33595222,1254.7,1254.5,1.21186397]
[1672894490158,17.40163944,1254.7,1254.5,1.21186397]
[1672894491589,12.90163944,1254.7,1254.5,1.21186397]
[1672894491885,20.87208944,1254.7,1254.5,1.21186397]
[1672894498445,25.05155841,1254.7,1254.5,1.21186397]
[1672894499040,17.08110841,1254.7,1254.5,1.21186397]
[1672894500033,12.90163944,1254.7,1254.5,1.21186397]
[1672894501999,12.90136944,1254.7,1254.5,1.21186397]
[1672894502797,4.93133944,1254.7,1254.5,9.18315397]
[1672894502958,4.86565222,1254.7,1254.5,9.24675518]
[1672894505158,4.86565222,1254.7,1254.5,1.27546518]
[1672894505411,12.83576222,1254.7,1254.5,1.21186397]
[1672894505571,12.90144944,1254.7,1254.5,1.21186397]
[1672894507986,4.93133944,1254.7,1254.5,1.21186397]
[1672894508250,4.86565222,1254.7,1254.5,9.18298397]
[1672894508419,4.86565222,1254.7,1254.5,9.24658518]
[1672894509489,4.86565222,1254.7,1254.5,9.24310764]
[1672894509682,9.36565222,1254.7,1254.5,9.24310764]
[1672894509892,4.93133944,1254.7,1254.5,9.24310764]
[1672894510102,4.86565222,1254.7,1254.5,9.24310764]
[1672894510357,4.86565222,1254.7,1254.5,1.27198764]
[1672894510506,12.83573222,1254.7,1254.5,1.20838643]
[1672894510891,20.87149944,1254.7,1254.5,1.20838643]
[1672894511244,12.90141944,1254.7,1254.5,1.20838643]
[1672894511950,9.43133944,1254.7,1254.5,1.20838643]
[1672894512740,4.93133944,1254.7,1254.5,1.20838643]
[1672894512948,4.86565222,1254.7,1254.5,1.20838643]
[1672894513776,12.83570222,1254.7,1254.5,1.20838643]
[1672894514032,12.90138944,1254.7,1254.5,1.20838643]
[1672894522085,12.95138944,1254.7,1254.5,1.20838643]
[1672894522299,12.90138944,1254.7,1254.5,1.20838643]
[1672894524457,20.87166944,1254.7,1254.5,1.20838643]
[1672894524669,12.90138944,1254.7,1254.5,1.20838643]
[1672894526250,12.95138944,1254.7,1254.5,1.20838643]
[1672894526461,12.90138944,1254.7,1254.5,1.20838643]
[1672894528563,17.08085841,1254.7,1254.5,1.20838643]
[1672894529160,4.93133944,1254.7,1254.5,1.20838643]
[1672894529342,4.86565222,1254.7,1254.5,1.20838643]
[1672894531398,4.86306783,1254.7,1254.5,1.20838643]
[1672894531771,9.0425368,1254.7,1254.5,1.20838643]
[1672894531980,9.10822402,1254.7,1254.5,1.20838643]
[1672894533509,17.07838402,1254.7,1254.5,1.20838643]
[1672894538137,33.01857402,1254.7,1254.5,1.20838643]
[1672894542539,33.41234864,1254.7,1254.5,1.20838643]
[1672894543069,33.01857402,1254.7,1254.5,1.20838643]
[1672894543219,12.89878505,1254.7,1254.5,1.20838643]
[1672894543636,17.07825402,1254.7,1254.5,1.20838643]
[1672894544273,12.89878505,1254.7,1254.5,1.20838643]
[1672894544642,17.07825402,1254.7,1254.5,1.20838643]
[1672894545691,12.89878505,1254.7,1254.5,1.20838643]
[1672894545953,8.03571722,1254.7,1254.5,1.20838643]
[1672894547048,12.21518619,1254.7,1254.5,1.20838643]
[1672894548958,12.81328619,1254.7,1254.5,1.20838643]
[1672894550014,4.84325619,1254.7,1254.5,1.20838643]
[1672894550236,4.77756897,1254.7,1254.5,1.20838643]
[1672894550533,0.5981,1254.7,1254.5,17.15083643]
[1672894550728,0.5981,1254.7,1254.5,17.21443764]
[1672894551345,30.71421165,1254.8,1254.5,9.24313764]
[1672894551558,22.74461165,1254.8,1254.5,9.24313764]
[1672894552895,0.05,1254.7,1254.5,9.24313764]
[1672894553227,17.67118803,1254.8,1254.5,9.24313764]
[1672894553445,24.46778537,1254.8,1254.5,9.24313764]
[1672894554305,32.43720537,1254.8,1254.5,9.24097286]
[1672894554527,24.46778537,1254.8,1254.5,9.24097286]
[1672894554903,24.46778537,1254.8,1254.5,1.26982286]
[1672894554904,32.43722537,1254.8,1254.5,1.26982286]
[1672894555274,24.46778537,1254.8,1254.5,9.17738165]
[1672894555579,32.43731537,1254.8,1254.5,9.24098286]
[1672894555750,15.77418803,1254.8,1254.5,9.24098286]
[1672894555977,15.17608803,1254.8,1254.5,9.24098286]
[1672894557325,23.14557803,1254.8,1254.5,9.24098286]
[1672894558101,30.72123562,1254.8,1254.5,1.26982286]
[1672894558263,30.72123562,1254.8,1254.5,1.20622165]
[1672894559148,46.24629472,1254.8,1254.5,1.20622165]
[1672894559518,48.15929472,1254.8,1254.5,1.20622165]
[1672894563164,0.05,1254.7,1254.5,1.20622165]
[1672894563398,15.94045,1254.7,1254.5,1.20622165]
[1672894563613,16.00613722,1254.7,1254.5,1.20622165]
[1672894563835,9.24302658,1254.7,1254.5,1.20622165]
[1672894564418,17.21307658,1254.7,1254.5,1.20622165]
[1672894567315,17.26307658,1254.7,1254.5,1.20622165]
[1672894567486,25.18312658,1254.7,1254.5,1.20622165]
[1672894568116,17.21307658,1254.7,1254.5,1.20622165]
[1672894568521,25.18312658,1254.7,1254.5,1.20622165]
[1672894569210,17.21307658,1254.7,1254.5,1.20622165]
[1672894571181,9.24302658,1254.7,1254.5,1.20622165]
[1672894571393,25.18308658,1254.7,1254.5,1.20622165]
[1672894572261,25.18306658,1254.7,1254.5,1.20622165]
[1672894572890,17.21303658,1254.7,1254.5,1.20622165]
[1672894575078,9.24300658,1254.7,1254.5,1.20622165]
[1672894575240,31.27053555,1254.7,1254.5,1.20622165]
[1672894575774,20.44132,1254.6,1254.5,1.20622165]
[1672894575972,16.00700722,1254.6,1254.5,1.20622165]
[1672894576223,19.13418678,1254.6,1254.5,1.20622165]
[1672894576945,19.13418678,1254.6,1254.5,1.20259705]
[1672894577698,11.16352678,1254.6,1254.5,1.20259705]
[1672894585761,3.24286678,1254.6,1254.5,1.20259705]
[1672894585970,3.12717956,1254.6,1254.5,1.20259705]
[1672894586441,1.97368722,1254.7,1254.5,1.20259705]
[1672894586632,22.33782472,1254.8,1254.5,17.14506705]
[1672894586811,22.33782472,1254.8,1254.5,17.20866826]
[1672894587247,22.33562529,1254.8,1254.5,17.20866826]
[1672894587596,18.15615632,1254.8,1254.5,9.23736826]
[1672894587811,26.53394945,1254.8,1254.5,9.23736826]
[1672894587967,26.12574632,1254.8,1254.5,9.23736826]
[1672894588926,34.09533632,1254.8,1254.5,1.26619826]
[1672894589138,34.09533632,1254.8,1254.5,1.20259705]
[1672894589492,26.12574632,1254.8,1254.5,1.20259705]
[1672894589710,34.09513632,1254.8,1254.5,1.20259705]
[1672894589916,10.60058722,1254.8,1254.5,9.17384705]
[1672894590148,15.10058722,1254.8,1254.5,9.23744826]
[1672894591449,23.07000722,1254.8,1254.5,1.26619826]
[1672894591750,23.07000722,1254.8,1254.5,1.20259705]
[1672894592663,17.06369925,1254.8,1254.5,17.6236863]
[1672894592919,11.19868722,1254.8,1254.5,17.68728751]
[1672894593240,10.60058722,1254.8,1254.5,17.68728751]
[1672894594553,10.60058722,1254.8,1254.5,9.71598751]
[1672894597068,34.50897722,1254.8,1254.5,1.74475751]
[1672894597270,40.58196525,1254.8,1254.5,1.6811563]
[1672894598633,26.53947722,1254.8,1254.5,1.677288]
[1672894598903,18.56997722,1254.8,1254.5,9.648538]
[1672894599274,18.56997722,1254.8,1254.5,9.71213921]
[1672894599428,10.60058722,1254.8,1254.5,9.71213921]
[1672894599966,18.57007722,1254.8,1254.5,9.71213921]
[1672894600181,18.57007722,1254.8,1254.5,12.27767813]
[1672894603324,10.60058722,1254.8,1254.5,20.24897813]
[1672894603680,10.60058722,1254.8,1254.5,12.27767813]
[1672894604283,0.05,1254.7,1254.5,12.27767813]
[1672894604466,10.60058722,1254.8,1254.5,12.27767813]
[1672894606332,0.05,1254.7,1254.5,12.27767813]
[1672894606516,10.60058722,1254.8,1254.5,12.27767813]
[1672894608096,18.57002722,1254.8,1254.5,12.27767813]
[1672894610809,10.60058722,1254.8,1254.5,12.27767813]
[1672894612299,10.59700955,1254.8,1254.5,12.27767813]
[1672894612527,15.09700955,1254.8,1254.5,12.27767813]
[1672894613190,10.59700955,1254.8,1254.5,12.27767813]
[1672894613776,10.59700955,1254.8,1254.5,20.24897813]
[1672894614126,10.59700955,1254.8,1254.5,28.22027813]
[1672894614647,0.06568722,1254.8,1254.5,28.22027813]
[1672894614810,21.50902135,1254.9,1254.5,32.20942764]
[1672894616143,29.47783135,1254.9,1254.5,24.23812764]
[1672894616291,29.47783135,1254.9,1254.5,32.20942764]
[1672894617856,29.47783135,1254.9,1254.5,24.23812764]
[1672894622931,37.44684135,1254.9,1254.5,24.23812764]
[1672894623894,41.62631032,1254.9,1254.5,24.23812764]
[1672894624083,33.65730032,1254.9,1254.5,24.23812764]
[1672894624297,29.47783135,1254.9,1254.5,24.23812764]
[1672894630584,21.50902135,1254.9,1254.5,32.20942764]
[1672894631269,29.47779135,1254.9,1254.5,32.20942764]
[1672894633059,21.50902135,1254.9,1254.5,32.20942764]
[1672894633605,29.47782135,1254.9,1254.5,24.23812764]
[1672894633735,29.47782135,1254.9,1254.5,24.23455271]
[1672894640468,33.65729032,1254.9,1254.5,24.23455271]
[1672894640731,29.47782135,1254.9,1254.5,24.23455271]
[1672894641045,33.65729032,1254.9,1254.5,24.23455271]
[1672894641412,29.47782135,1254.9,1254.5,24.23455271]
[1672894645843,33.65729032,1254.9,1254.5,24.23455271]
[1672894646411,29.47782135,1254.9,1254.5,24.23455271]
[1672894646583,33.65729032,1254.9,1254.5,24.23455271]
[1672894646793,29.47782135,1254.9,1254.5,24.23455271]
[1672894647202,30.35486837,1254.9,1254.5,24.23455271]
[1672894648895,34.53433734,1254.9,1254.5,24.23455271]
[1672894649460,30.35486837,1254.9,1254.5,24.23455271]
[1672894649819,34.53433734,1254.9,1254.5,24.23455271]
[1672894654593,34.53433734,1254.9,1254.5,23.75599346]
[1672894654861,34.53433734,1254.9,1254.5,24.23204238]
[1672894655282,42.50313734,1254.9,1254.5,16.26074238]
[1672894655496,42.50313734,1254.9,1254.5,1.73480395]
[1672894655497,4.17946897,1254.8,1254.5,1.73480395]
[1672894655746,15.94006,1254.7,1254.5,4.19264349]
[1672894655955,16.00574722,1254.7,1254.5,1.19264349]
[1672894656127,18.81465712,1254.7,1254.5,1.19264349]
[1672894660251,16.00574722,1254.7,1254.5,1.19264349]
[1672894660458,8.03571722,1254.7,1254.5,1.19264349]
[1672894661665,0.06568722,1254.7,1254.5,1.19264349]
[1672894661841,34.46971665,1254.8,1254.5,1.19264349]
[1672894676159,26.49978665,1254.8,1254.5,1.19264349]
[1672894676307,32.84774033,1254.8,1254.5,1.19264349]
[1672894676682,32.84774033,1254.8,1254.5,1.18882653]
[1672894681875,24.87781033,1254.8,1254.5,9.16007653]
[1672894682091,24.87781033,1254.8,1254.5,9.22367774]
[1672894683138,16.90824033,1254.8,1254.5,9.22367774]
[1672894683472,16.90824033,1254.8,1254.5,17.19497774]
[1672894686928,24.87765033,1254.8,1254.5,9.22367774]
[1672894694902,0.06568722,1254.8,1254.5,35.5615298]
[1672894695074,45.41602135,1254.9,1254.5,13.6913865]
[1672894695281,37.44688135,1254.9,1254.5,21.6626865]
[1672894700842,37.44688135,1254.9,1254.5,21.65881505]
[1672894702255,37.44688135,1254.9,1254.5,21.65681505]
[1672894702411,37.44688135,1254.9,1254.5,21.65881505]
[1672894702622,37.44688135,1254.9,1254.5,25.8384452]
[1672894706217,29.47782135,1254.9,1254.5,33.8097452]
[1672894709205,37.44691135,1254.9,1254.5,25.8384452]
[1672894712474,37.44691135,1254.9,1254.5,1.72711554]
[1672894712475,37.44911078,1254.9,1254.5,1.72711554]
[1672894712640,0.5981,1254.8,1254.5,1.66351433]
[1672894712855,15.93933,1254.8,1254.5,1.66351433]
[1672894713119,21.06536539,1254.8,1254.5,1.66351433]
[1672894713435,29.03520539,1254.8,1254.5,1.66351433]
[1672894713602,39.42730539,1254.8,1254.5,1.66351433]
[1672894714030,31.45746539,1254.8,1254.5,1.66351433]
[1672894714362,23.48762539,1254.8,1254.5,9.63456433]
[1672894714571,15.51813539,1254.8,1254.5,17.66946554]
[1672894714782,23.48755539,1254.8,1254.5,1.72711554]
[1672894714958,39.42636539,1254.8,1254.5,1.66351433]
[1672894716077,31.45694539,1254.8,1254.5,1.66351433]
[1672894717697,23.48752539,1254.8,1254.5,1.66351433]
[1672894718439,23.48752539,1254.8,1254.5,9.63473433]
[1672894718659,23.48752539,1254.8,1254.5,9.69833554]
[1672894720472,35.63638436,1254.8,1254.5,1.72711554]
[1672894720687,31.45691539,1254.8,1254.5,1.66351433]
[1672894721008,31.45691539,1254.8,1254.5,1.18495508]
[1672894723257,43.60577436,1254.8,1254.5,1.18495508]
[1672894723469,31.45691539,1254.8,1254.5,1.18495508]
[1672894725409,45.51877436,1254.8,1254.5,1.18495508]
[1672894725566,45.51877436,1254.8,1254.5,1.18198201]
[1672894725775,4.5,1254.7,1254.5,1.18198201]
[1672894726058,25.44479687,1254.7,1254.5,1.18198201]
[1672894726199,25.51048409,1254.7,1254.5,1.18198201]
[1672894726851,33.48084409,1254.7,1254.5,1.18198201]
[1672894727081,33.48084409,1254.7,1254.5,0.86013673]
[1672894727424,3.58431175,1254.6,1254.5,0.86013673]
[1672894727638,23.23214733,1254.6,1254.5,0.86013673]
[1672894727808,23.89603455,1254.6,1254.5,0.86013673]
[1672894728160,31.86669455,1254.6,1254.5,0.86013673]
[1672894728309,31.26849455,1254.6,1254.5,0.86013673]
[1672894731172,39.65380128,1254.6,1254.5,0.86013673]
[1672894731373,40.25200128,1254.6,1254.2,30.41258187]
[1672894731585,1.913,1254.4,1254.2,0.12258187]
[1672894731829,7.97257,1254.3,1254.2,0.05898066]
[1672894732039,8.03825722,1254.3,1254.2,0.05898066]
[1672894732249,0.06568722,1254.3,1254.2,0.05898066]
[1672894732443,40.77685366,1254.4,1254.2,0.05898066]
[1672894732668,12.47257,1254.3,1254.2,0.05898066]
[1672894733002,12.53825722,1254.3,1254.2,0.05898066]
[1672894733188,13.36319959,1254.3,1254.2,0.05898066]
[1672894733409,29.30833959,1254.3,1254.2,0.05898066]
[1672894735248,21.33576959,1254.3,1254.2,0.05898066]
[1672894736360,15.27619959,1254.3,1254.2,0.05898066]
[1672894736565,23.24876959,1254.3,1254.2,0.05898066]
[1672894736950,15.27619959,1254.3,1254.2,0.05898066]
[1672894737910,31.22133959,1254.3,1254.2,0.05898066]
[1672894738181,23.24876959,1254.3,1254.2,0.05898066]
[1672894738491,7.30362959,1254.3,1254.2,0.05898066]
[1672894739073,5.39062959,1254.3,1254.2,0.05898066]
[1672894739306,0.06568722,1254.3,1254.2,0.05898066]
[1672894739611,24.83463309,1254.4,1254.2,0.05898066]
[1672894740981,32.80664309,1254.4,1254.2,0.05898066]
[1672894744282,24.83463309,1254.4,1254.2,8.03208066]
[1672894744503,24.83463309,1254.4,1254.2,0.12258187]
[1672894744654,24.83463309,1254.4,1254.2,0.05898066]
[1672894744870,24.83463309,1254.4,1254.2,8.03203066]
[1672894745076,24.83463309,1254.4,1254.2,8.09563187]
[1672894745853,24.83463309,1254.4,1254.2,0.12258187]
[1672894746064,24.83463309,1254.4,1254.2,0.05898066]
[1672894746214,32.80669309,1254.4,1254.2,0.05898066]
[1672894750004,48.75081309,1254.4,1254.2,0.05898066]
[1672894750215,0.05,1254.3,1254.2,0.05898066]
[1672894750438,40.77875309,1254.4,1254.2,0.05898066]
[1672894750578,30.89369309,1254.4,1254.2,0.05898066]
[1672894751274,22.92163309,1254.4,1254.2,0.05898066]
[1672894751588,30.89370309,1254.4,1254.2,0.05898066]
[1672894752116,38.86577309,1254.4,1254.2,0.05898066]
[1672894752323,46.83784309,1254.4,1254.2,0.05898066]
[1672894754277,46.88784309,1254.4,1254.2,0.05559649]
[1672894754495,4.5,1254.3,1254.2,0.05559649]
[1672894754968,46.83784309,1254.4,1254.2,0.05559649]
[1672894755117,4.5,1254.3,1254.2,0.05559649]
[1672894755663,20.44514,1254.3,1254.2,0.05559649]
[1672894755876,25.64471153,1254.3,1254.2,0.05559649]
[1672894756852,21.14471153,1254.3,1254.2,0.05559649]
[1672894760270,29.11728153,1254.3,1254.2,0.05559649]
[1672894762840,21.14471153,1254.3,1254.2,0.05559649]
[1672894763439,21.1414073,1254.3,1254.2,0.05559649]
[1672894764697,13.1688373,1254.3,1254.2,0.05559649]
[1672894765747,5.19957153,1254.3,1254.2,0.05559649]
[1672894765959,13.17214153,1254.3,1254.2,0.05559649]
[1672894766221,34.61054592,1254.3,1254.2,0.05559649]
[1672894766583,35.25884592,1254.3,1254.2,0.05559649]
[1672894766847,35.20884592,1254.3,1254.2,0.05559649]
[1672894767954,19.26370592,1254.3,1254.2,0.05559649]
[1672894771015,18.66540592,1254.3,1254.2,0.05559649]
[1672894771478,10.69283592,1254.3,1254.2,0.05559649]
[1672894779128,18.66540592,1254.3,1254.2,0.05559649]
[1672894781003,35.2097505,1254.3,1254.2,6.49e-06]
[1672894781213,35.9740928,1254.3,1254.1,0.06856467]
[1672894781424,10.57895379,1254.2,1254.1,0.06856467]
[1672894781636,31.05506567,1254.2,1254.1,0.06856467]
[1672894782272,23.08185567,1254.2,1254.1,0.06856467]
[1672894782670,28.69970188,1254.2,1254.1,0.06856467]
[1672894783460,32.2820076,1254.2,1254.1,0.06856467]
[1672894783996,19.8087976,1254.2,1254.1,0.06856467]
[1672894784305,19.8087976,1254.2,1254.1,23.99008467]
[1672894784306,9.86548722,1254.2,1254.1,23.99008467]
[1672894784460,9.86548722,1254.2,1254.1,24.05368588]
[1672894784881,9.86548722,1254.2,1254.1,16.07984588]
[1672894786788,9.86548722,1254.2,1254.1,8.10600588]
[1672894787435,9.86548722,1254.2,1254.1,16.07984588]
[1672894788204,9.86548722,1254.2,1254.1,8.10600588]
[1672894788747,9.86548722,1254.2,1254.1,0.13216588]
[1672894789059,9.86548722,1254.2,1254.1,0.06856467]
[1672894790424,9.86548722,1254.2,1254.1,23.99008467]
[1672894790591,9.86548722,1254.2,1254.1,24.05368588]
[1672894790814,9.86548722,1254.2,1254.1,16.07984588]
[1672894791182,9.86548722,1254.2,1254.1,24.05368588]
[1672894791489,9.86548722,1254.2,1254.1,16.07984588]
[1672894792048,9.86548722,1254.2,1254.1,8.10600588]
[1672894794210,9.86548722,1254.2,1254.1,0.13216588]
[1672894794415,9.86548722,1254.2,1254.1,0.06856467]
[1672894794885,9.86548722,1254.2,1254.1,0.88281352]
[1672894797255,43.49860974,1254.2,1254.1,0.88281352]
[1672894797405,44.09825781,1254.2,1254.1,0.88281352]
[1672894797615,39.91630402,1254.2,1254.1,0.88281352]
[1672894797948,44.09825781,1254.2,1254.1,0.88281352]
[1672894798181,43.50036351,1254.2,1254.1,0.88281352]
[1672894798391,39.91630402,1254.2,1254.1,0.88281352]
[1672894798711,43.49968718,1254.2,1254.1,0.88281352]
[1672894799455,43.49965349,1254.2,1254.1,0.88281352]
[1672894799673,39.91630402,1254.2,1254.1,0.88281352]
[1672894799820,43.49963496,1254.2,1254.1,0.88281352]
[1672894800174,43.50220067,1254.2,1254.1,0.88281352]
[1672894800364,43.5015539,1254.2,1254.1,0.88281352]
[1672894800565,39.91850345,1254.2,1254.1,0.88281352]
[1672894800777,47.89645724,1254.2,1254.1,0.88281352]
[1672894801307,47.85852468,1254.2,1254.1,0.88281352]
[1672894802762,48.08852468,1254.2,1254.1,0.88281352]
[1672894803132,23.93889468,1254.2,1254.1,0.88281352]
[1672894803287,31.91210468,1254.2,1254.1,0.88281352]
[1672894803976,27.73015089,1254.2,1254.1,0.88281352]
[1672894804212,31.91210468,1254.2,1254.1,0.88281352]
[1672894804411,27.73015089,1254.2,1254.1,0.88281352]
[1672894804909,39.88531468,1254.2,1254.1,0.88281352]
[1672894805410,27.73015089,1254.2,1254.1,0.88281352]
[1672894805835,43.67657089,1254.2,1254.1,0.88281352]
[1672894806049,49.76252468,1254.2,1254.1,0.88281352]
[1672894806238,53.59092468,1254.2,1254.1,0.88281352]
[1672894806450,51.69392468,1254.2,1254.1,0.88281352]
[1672894815963,64.86092468,1254.2,1254.1,0.88281352]
[1672894816565,60.67897089,1254.2,1254.1,0.88281352]
[1672894816987,54.37833654,1254.2,1254.1,0.88281352]
[1672894817186,53.96654654,1254.2,1254.1,0.88281352]
[1672894817395,45.99333654,1254.2,1254.1,0.88281352]